[Event "*** Titled Tuesday Blitz"]
[Site "Chess.com"]
[Date "2021.03.30"]
[Round "8"]
[White "HrvojeZagreb"]
[Black "davigator"]
[Result "1-0"]
[WhiteElo "2246"]
[BlackElo "2415"]
[TimeControl "180+1"]
[EndTime "11:29:24 PDT"]
[Termination "HrvojeZagreb won by checkmate"]

1. d4 {[%clk 0:03:00.9]} 1... Nf6 {[%clk 0:02:57.9]} 2. Bf4 {[%clk 0:02:59.9]}
2... c5 {[%clk 0:02:57.1]} 3. e3 {[%clk 0:02:59.1]} 3... d5 {[%clk 0:02:56.7]}
4. Nc3 {[%clk 0:02:58.8]} 4... e6 {[%clk 0:02:56.1]} 5. Nb5 {[%clk 0:02:58]}
5... Na6 {[%clk 0:02:55.8]} 6. c3 {[%clk 0:02:57.8]} 6... Be7 {[%clk 0:02:53.7]}
7. Nf3 {[%clk 0:02:56.5]} 7... O-O {[%clk 0:02:53.4]} 8. a4 {[%clk 0:02:54.6]}
8... Qb6 {[%clk 0:02:52.6]} 9. Ne5 {[%clk 0:02:41]} 9... Bd7 {[%clk 0:02:46.9]}
10. g4 {[%clk 0:02:31.5]} 10... Bc6 {[%clk 0:02:28]} 11. g5 {[%clk 0:02:22]}
11... Ne4 {[%clk 0:02:22.2]} 12. h4 {[%clk 0:02:15.4]} 12... Qd8 {[%clk
0:02:16.1]} 13. f3 {[%clk 0:02:03.4]} 13... Nd6 {[%clk 0:02:15.9]} 14. Nxc6
{[%clk 0:01:57.6]} 14... bxc6 {[%clk 0:02:14.3]} 15. Nxd6 {[%clk 0:01:57.7]}
15... Bxd6 {[%clk 0:02:13.5]} 16. Bxa6 {[%clk 0:01:57.9]} 16... Bxf4 {[%clk
0:02:12.3]} 17. exf4 {[%clk 0:01:58.8]} 17... c4 {[%clk 0:02:11.6]} 18. Bb7
{[%clk 0:01:52.3]} 18... Rb8 {[%clk 0:02:11.5]} 19. Bxc6 {[%clk 0:01:50]} 19...
Rxb2 {[%clk 0:02:11.9]} 20. a5 {[%clk 0:01:43.8]} 20... Qc7 {[%clk 0:02:11.6]}
21. Qc1 {[%clk 0:01:42.7]} 21... Rbb8 {[%clk 0:01:50.6]} 22. Ba4 {[%clk
0:01:37.6]} 22... Qxa5 {[%clk 0:01:50.7]} 23. O-O {[%clk 0:01:29.8]} 23... Qc7
{[%clk 0:01:47.3]} 24. Bc2 {[%clk 0:01:18.2]} 24... Rb6 {[%clk 0:01:44.8]} 25.
Re1 {[%clk 0:01:10.7]} 25... Rfb8 {[%clk 0:01:43.8]} 26. Rb1 {[%clk 0:01:05.8]}
26... g6 {[%clk 0:01:39.4]} 27. Qd2 {[%clk 0:01:01.1]} 27... Rb2 {[%clk
0:01:36.3]} 28. Rxb2 {[%clk 0:01:00.4]} 28... Rxb2 {[%clk 0:01:36.2]} 29. Rb1
{[%clk 0:00:56.9]} 29... Ra2 {[%clk 0:01:36.6]} 30. h5 {[%clk 0:00:41.6]} 30...
a5 {[%clk 0:01:33.1]} 31. h6 {[%clk 0:00:35.2]} 31... Kf8 {[%clk 0:01:32.3]} 32.
Qc1 {[%clk 0:00:23.4]} 32... a4 {[%clk 0:01:19.8]} 33. Kg2 {[%clk 0:00:18.2]}
33... a3 {[%clk 0:01:19.4]} 34. Kg3 {[%clk 0:00:18.1]} 34... Qa5 {[%clk
0:01:14.4]} 35. Rb8+ {[%clk 0:00:13.1]} 35... Ke7 {[%clk 0:01:13.9]} 36. Qb1
{[%clk 0:00:13.2]} 36... Rb2 {[%clk 0:01:08]} 37. Rxb2 {[%clk 0:00:12]} 37...
axb2 {[%clk 0:01:08.4]} 38. Qxb2 {[%clk 0:00:12.4]} 38... Kd7 {[%clk 0:01:02.2]}
39. Qb4 {[%clk 0:00:10.4]} 39... Qa2 {[%clk 0:00:59.9]} 40. Ba4+ {[%clk
0:00:09.9]} 40... Kc8 {[%clk 0:00:59.5]} 41. Qf8+ {[%clk 0:00:02.3]} 41... Kc7
{[%clk 0:00:56.7]} 42. Qxf7+ {[%clk 0:00:02.7]} 42... Kb6 {[%clk 0:00:56.8]} 43.
Qxe6+ {[%clk 0:00:02.9]} 43... Ka5 {[%clk 0:00:56.8]} 44. Qc6 {[%clk 0:00:03]}
44... Qb2 {[%clk 0:00:55.6]} 45. Qb5+ {[%clk 0:00:03.5]} 45... Qxb5 {[%clk
0:00:52.7]} 46. Bxb5 {[%clk 0:00:04.4]} 46... Kxb5 {[%clk 0:00:53.2]} 47. f5
{[%clk 0:00:05.3]} 47... gxf5 {[%clk 0:00:51.4]} 48. g6 {[%clk 0:00:06.2]} 48...
hxg6 {[%clk 0:00:50.2]} 49. h7 {[%clk 0:00:07.1]} 49... Ka4 {[%clk 0:00:50.3]}
50. h8=Q {[%clk 0:00:07.6]} 50... Kb3 {[%clk 0:00:51]} 51. Qe5 {[%clk
0:00:07.9]} 51... Kxc3 {[%clk 0:00:51]} 52. Qxd5 {[%clk 0:00:08.3]} 52... Kd3
{[%clk 0:00:51.8]} 53. Qc5 {[%clk 0:00:08.8]} 53... c3 {[%clk 0:00:52.7]} 54. d5
{[%clk 0:00:09.3]} 54... c2 {[%clk 0:00:52.9]} 55. d6 {[%clk 0:00:09.7]} 55...
g5 {[%clk 0:00:52.4]} 56. d7 {[%clk 0:00:08.7]} 56... c1=Q {[%clk 0:00:50.3]}
57. Qxc1 {[%clk 0:00:08.1]} 57... f4+ {[%clk 0:00:48.2]} 58. Qxf4 {[%clk
0:00:08.1]} 58... Ke2 {[%clk 0:00:48.9]} 59. d8=Q {[%clk 0:00:06.1]} 59... gxf4+
{[%clk 0:00:49.8]} 60. Kxf4 {[%clk 0:00:06.2]} 60... Kf2 {[%clk 0:00:49.7]} 61.
Qe7 {[%clk 0:00:06.4]} 61... Kg2 {[%clk 0:00:49.5]} 62. Kg4 {[%clk 0:00:07.3]}
62... Kf2 {[%clk 0:00:49.1]} 63. f4 {[%clk 0:00:08.2]} 63... Kg2 {[%clk
0:00:48.6]} 64. f5 {[%clk 0:00:09.1]} 64... Kf2 {[%clk 0:00:48.5]} 65. f6 {[%clk
0:00:10]} 65... Kg2 {[%clk 0:00:48.8]} 66. f7 {[%clk 0:00:10.9]} 66... Kh2
{[%clk 0:00:49.1]} 67. f8=Q {[%clk 0:00:11.8]} 67... Kh1 {[%clk 0:00:49.4]} 68.
Qe1+ {[%clk 0:00:11.6]} 68... Kg2 {[%clk 0:00:49.1]} 69. Qff2# {[%clk
0:00:12.5]} 1-0

[Event "*** Titled Tuesday Blitz"]
[Site "Chess.com"]
[Date "2021.03.30"]
[Round "8"]
[White "Sergey85Rodchenkov"]
[Black "mbojan"]
[Result "0-1"]
[WhiteElo "2529"]
[BlackElo "2673"]
[TimeControl "180+1"]
[EndTime "11:29:25 PDT"]
[Termination "mbojan won by checkmate"]

1. e4 {[%clk 0:03:00.9]} 1... g6 {[%clk 0:03:00.9]} 2. d4 {[%clk 0:03:00.4]}
2... Bg7 {[%clk 0:03:01.4]} 3. Nf3 {[%clk 0:03:00.5]} 3... d6 {[%clk 0:03:01.6]}
4. c3 {[%clk 0:03:00.8]} 4... Nf6 {[%clk 0:03:01.4]} 5. Bd3 {[%clk 0:03:00.8]}
5... O-O {[%clk 0:03:01.4]} 6. O-O {[%clk 0:03:00.6]} 6... Nc6 {[%clk
0:03:01.3]} 7. Re1 {[%clk 0:03:00.7]} 7... e5 {[%clk 0:03:01.4]} 8. dxe5 {[%clk
0:02:58.8]} 8... Nxe5 {[%clk 0:03:01.3]} 9. Nxe5 {[%clk 0:02:58.9]} 9... dxe5
{[%clk 0:03:01.5]} 10. Bg5 {[%clk 0:02:59.6]} 10... h6 {[%clk 0:03:00.7]} 11.
Bh4 {[%clk 0:02:59.2]} 11... Qe7 {[%clk 0:02:55]} 12. Qc2 {[%clk 0:02:59]} 12...
Rd8 {[%clk 0:02:52.7]} 13. Bf1 {[%clk 0:02:58.8]} 13... Be6 {[%clk 0:02:21.9]}
14. Nd2 {[%clk 0:02:57.7]} 14... Qc5 {[%clk 0:02:19.1]} 15. b4 {[%clk
0:02:53.5]} 15... Qc6 {[%clk 0:02:18.5]} 16. a4 {[%clk 0:02:50.9]} 16... a5
{[%clk 0:02:11.8]} 17. Bb5 {[%clk 0:02:30]} 17... Qd6 {[%clk 0:02:02.8]} 18.
Rad1 {[%clk 0:02:10.3]} 18... axb4 {[%clk 0:01:40.2]} 19. Nc4 {[%clk 0:02:09.5]}
19... Qe7 {[%clk 0:01:40.2]} 20. Nxe5 {[%clk 0:01:53.6]} 20... b3 {[%clk
0:01:36.7]} 21. Qb1 {[%clk 0:01:42.7]} 21... g5 {[%clk 0:01:33.3]} 22. Rxd8+
{[%clk 0:01:39.1]} 22... Rxd8 {[%clk 0:01:32.2]} 23. Bg3 {[%clk 0:01:39.6]}
23... Nh5 {[%clk 0:01:27.8]} 24. Nf3 {[%clk 0:00:56]} 24... Nxg3 {[%clk
0:01:26.1]} 25. hxg3 {[%clk 0:00:56.1]} 25... Bxc3 {[%clk 0:01:02.4]} 26. Re3
{[%clk 0:00:54.2]} 26... Bd4 {[%clk 0:00:55.8]} 27. Nxd4 {[%clk 0:00:50.6]}
27... Rxd4 {[%clk 0:00:56.7]} 28. e5 {[%clk 0:00:48.4]} 28... c6 {[%clk
0:00:52.8]} 29. Be2 {[%clk 0:00:43]} 29... Rxa4 {[%clk 0:00:43.4]} 30. Qb2
{[%clk 0:00:22.9]} 30... Qc5 {[%clk 0:00:36.3]} 31. Qd2 {[%clk 0:00:18.3]} 31...
Ra2 {[%clk 0:00:32.2]} 32. Qd8+ {[%clk 0:00:17.2]} 32... Qf8 {[%clk 0:00:32.7]}
33. Qf6 {[%clk 0:00:16.5]} 33... Ra1+ {[%clk 0:00:27.1]} 34. Kh2 {[%clk
0:00:16]} 34... b2 {[%clk 0:00:27.2]} 35. Bd3 {[%clk 0:00:16.6]} 35... b1=Q
{[%clk 0:00:23.3]} 36. Bxb1 {[%clk 0:00:16.4]} 36... Rxb1 {[%clk 0:00:24.2]} 37.
f4 {[%clk 0:00:11.3]} 37... Rf1 {[%clk 0:00:17.2]} 38. Rd3 {[%clk 0:00:07.9]}
38... Bd5 {[%clk 0:00:14.7]} 39. f5 {[%clk 0:00:07.7]} 39... Qg7 {[%clk
0:00:11.7]} 40. Qd8+ {[%clk 0:00:06.8]} 40... Kh7 {[%clk 0:00:11.9]} 41. f6
{[%clk 0:00:04.6]} 41... Qg6 {[%clk 0:00:12]} 42. g4 {[%clk 0:00:05.2]} 42...
Qe4 {[%clk 0:00:09]} 43. Rg3 {[%clk 0:00:04.6]} 43... Rf2 {[%clk 0:00:07.2]} 44.
Qf8 {[%clk 0:00:02.5]} 44... Rxg2+ {[%clk 0:00:07]} 45. Kh3 {[%clk 0:00:02.6]}
45... Rxg3+ {[%clk 0:00:07.4]} 46. Kxg3 {[%clk 0:00:03]} 46... Qg2# {[%clk
0:00:08.3]} 0-1

[Event "*** Titled Tuesday Blitz"]
[Site "Chess.com"]
[Date "2021.03.30"]
[Round "8"]
[White "Genghis_K"]
[Black "Vanina1989"]
[Result "1/2-1/2"]
[WhiteElo "2941"]
[BlackElo "2770"]
[TimeControl "180+1"]
[EndTime "11:29:26 PDT"]
[Termination "Game drawn by stalemate"]

1. e4 {[%clk 0:02:53.8]} 1... c6 {[%clk 0:02:59.9]} 2. Nf3 {[%clk 0:02:52.7]}
2... d5 {[%clk 0:03:00.1]} 3. d3 {[%clk 0:02:53.6]} 3... Bg4 {[%clk 0:02:58.1]}
4. h3 {[%clk 0:02:42.6]} 4... Bxf3 {[%clk 0:02:58.3]} 5. Qxf3 {[%clk 0:02:42.7]}
5... e6 {[%clk 0:02:58.9]} 6. Be2 {[%clk 0:02:42.2]} 6... Bd6 {[%clk 0:02:59.1]}
7. Qg4 {[%clk 0:02:41]} 7... Qf6 {[%clk 0:02:31.7]} 8. f4 {[%clk 0:02:34]} 8...
Bc5 {[%clk 0:02:14.6]} 9. e5 {[%clk 0:02:31.8]} 9... Qg6 {[%clk 0:02:15]} 10. c3
{[%clk 0:02:26.8]} 10... d4 {[%clk 0:02:09.1]} 11. c4 {[%clk 0:02:24.2]} 11...
Ne7 {[%clk 0:02:08.4]} 12. Nd2 {[%clk 0:02:24.4]} 12... Bb4 {[%clk 0:02:08.8]}
13. a3 {[%clk 0:02:24]} 13... Bxd2+ {[%clk 0:02:08.9]} 14. Bxd2 {[%clk
0:02:24.9]} 14... Nd7 {[%clk 0:02:09.3]} 15. Qf3 {[%clk 0:02:16.9]} 15... O-O-O
{[%clk 0:02:03.4]} 16. b4 {[%clk 0:02:16.2]} 16... f6 {[%clk 0:02:03.4]} 17.
exf6 {[%clk 0:02:14.1]} 17... gxf6 {[%clk 0:02:03.3]} 18. g4 {[%clk 0:02:12.7]}
18... f5 {[%clk 0:02:01.4]} 19. O-O-O {[%clk 0:02:11.2]} 19... e5 {[%clk
0:02:00.7]} 20. gxf5 {[%clk 0:02:08.8]} 20... Qxf5 {[%clk 0:01:54.8]} 21. fxe5
{[%clk 0:02:05.5]} 21... Nxe5 {[%clk 0:01:54.4]} 22. Qxf5+ {[%clk 0:02:01.8]}
22... Nxf5 {[%clk 0:01:54.3]} 23. Bf4 {[%clk 0:02:00.6]} 23... Ng6 {[%clk
0:01:43.9]} 24. Bh2 {[%clk 0:01:56.5]} 24... Ne3 {[%clk 0:01:33.8]} 25. Rdg1
{[%clk 0:01:52.7]} 25... Rdf8 {[%clk 0:01:31.5]} 26. Bg3 {[%clk 0:01:50.2]}
26... Rf7 {[%clk 0:01:23.5]} 27. h4 {[%clk 0:01:50]} 27... Re8 {[%clk
0:01:19.7]} 28. h5 {[%clk 0:01:47.7]} 28... Nf4 {[%clk 0:01:19.3]} 29. Bxf4
{[%clk 0:01:48]} 29... Rxf4 {[%clk 0:01:19.4]} 30. Rg7 {[%clk 0:01:48.1]} 30...
Rf2 {[%clk 0:01:14.5]} 31. Bd1 {[%clk 0:01:43]} 31... h6 {[%clk 0:00:56.5]} 32.
Bb3 {[%clk 0:01:38.9]} 32... Ref8 {[%clk 0:00:43.8]} 33. c5 {[%clk 0:01:37.4]}
33... a6 {[%clk 0:00:26.8]} 34. Be6+ {[%clk 0:01:30]} 34... Kb8 {[%clk
0:00:26.8]} 35. Rg6 {[%clk 0:01:30.4]} 35... Rc2+ {[%clk 0:00:25.6]} 36. Kb1
{[%clk 0:01:29.7]} 36... Rff2 {[%clk 0:00:25.3]} 37. Rxh6 {[%clk 0:01:14]} 37...
Rb2+ {[%clk 0:00:25.6]} 38. Ka1 {[%clk 0:01:13.8]} 38... Rbd2 {[%clk 0:00:26]}
39. Rh8+ {[%clk 0:01:09.3]} 39... Ka7 {[%clk 0:00:25.8]} 40. h6 {[%clk
0:01:02.5]} 40... Nc2+ {[%clk 0:00:26]} 41. Kb2 {[%clk 0:01:00.2]} 41... Nxb4+
{[%clk 0:00:26.2]} 42. Kb3 {[%clk 0:00:59]} 42... Nxd3 {[%clk 0:00:26.5]} 43. h7
{[%clk 0:00:53.2]} 43... Nxc5+ {[%clk 0:00:22.7]} 44. Kc4 {[%clk 0:00:51.6]}
44... Nxe6 {[%clk 0:00:22.3]} 45. Ra8+ {[%clk 0:00:50.2]} 45... Kxa8 {[%clk
0:00:22.4]} 46. h8=Q+ {[%clk 0:00:49.8]} 46... Ka7 {[%clk 0:00:22.9]} 47. Qe5
{[%clk 0:00:45.2]} 47... Rfe2 {[%clk 0:00:22]} 48. Qd6 {[%clk 0:00:41.4]} 48...
Re3 {[%clk 0:00:22.2]} 49. Rb1 {[%clk 0:00:28.3]} 49... Rc3+ {[%clk 0:00:20.5]}
50. Kb4 {[%clk 0:00:28.8]} 50... c5+ {[%clk 0:00:19.4]} 51. Ka4 {[%clk
0:00:28.1]} 51... b5+ {[%clk 0:00:18.4]} 52. Rxb5 {[%clk 0:00:26.1]} 52... axb5+
{[%clk 0:00:18.7]} 53. Kxb5 {[%clk 0:00:27]} 53... Rb2+ {[%clk 0:00:18.7]} 54.
Ka4 {[%clk 0:00:23.3]} 54... Rb6 {[%clk 0:00:16.3]} 55. Qxb6+ {[%clk 0:00:15.7]}
55... Kxb6 {[%clk 0:00:14.9]} 1/2-1/2

[Event "*** Titled Tuesday Blitz"]
[Site "Chess.com"]
[Date "2021.03.30"]
[Round "8"]
[White "ahmad_alkhatib11"]
[Black "gxbg2000"]
[Result "0-1"]
[WhiteElo "2291"]
[BlackElo "1935"]
[TimeControl "180+1"]
[EndTime "11:29:28 PDT"]
[Termination "gxbg2000 won on time"]

1. Nf3 {[%clk 0:03:00.9]} 1... Nf6 {[%clk 0:02:59.3]} 2. g3 {[%clk 0:03:00.9]}
2... c6 {[%clk 0:02:58.5]} 3. Bg2 {[%clk 0:03:00.8]} 3... g6 {[%clk 0:02:59.1]}
4. O-O {[%clk 0:03:01.7]} 4... Bg7 {[%clk 0:02:59.6]} 5. b3 {[%clk 0:02:59]}
5... O-O {[%clk 0:03:00.3]} 6. Bb2 {[%clk 0:02:59.3]} 6... d6 {[%clk 0:02:59.9]}
7. d4 {[%clk 0:02:58.5]} 7... Na6 {[%clk 0:02:58.3]} 8. Nbd2 {[%clk 0:02:57.9]}
8... Nc7 {[%clk 0:02:58.3]} 9. e4 {[%clk 0:02:56.8]} 9... e6 {[%clk 0:02:57.7]}
10. e5 {[%clk 0:02:52.9]} 10... Nfd5 {[%clk 0:02:56.2]} 11. Ne4 {[%clk
0:02:50.4]} 11... dxe5 {[%clk 0:02:55.5]} 12. dxe5 {[%clk 0:02:50.2]} 12... b6
{[%clk 0:02:46.4]} 13. a3 {[%clk 0:02:38.8]} 13... Ba6 {[%clk 0:02:45.6]} 14. c4
{[%clk 0:02:37]} 14... Ne7 {[%clk 0:02:43.5]} 15. Qc1 {[%clk 0:02:23]} 15... Nf5
{[%clk 0:02:41.3]} 16. Rd1 {[%clk 0:02:20.8]} 16... Qe7 {[%clk 0:02:39.9]} 17.
g4 {[%clk 0:01:51.1]} 17... Nh6 {[%clk 0:02:37.2]} 18. Qf4 {[%clk 0:01:31.2]}
18... Rfd8 {[%clk 0:02:26.1]} 19. Nf6+ {[%clk 0:01:29.7]} 19... Kh8 {[%clk
0:02:21.6]} 20. Ng5 {[%clk 0:01:27.3]} 20... Rxd1+ {[%clk 0:02:05]} 21. Rxd1
{[%clk 0:01:26.3]} 21... Rd8 {[%clk 0:02:05.7]} 22. Re1 {[%clk 0:00:46.3]} 22...
b5 {[%clk 0:01:44.3]} 23. Nfxh7 {[%clk 0:00:21.7]} 23... bxc4 {[%clk 0:01:43.1]}
24. bxc4 {[%clk 0:00:21.7]} 24... Rb8 {[%clk 0:01:35.5]} 25. Bc1 {[%clk
0:00:17.6]} 25... Ne8 {[%clk 0:01:24.2]} 26. Nf6 {[%clk 0:00:13.8]} 26... Nxf6
{[%clk 0:01:20.7]} 27. exf6 {[%clk 0:00:14.7]} 27... Bxf6 {[%clk 0:01:17.1]} 28.
Ne4 {[%clk 0:00:12.9]} 28... Bg7 {[%clk 0:01:16.2]} 29. Nd6 {[%clk 0:00:11.5]}
29... Rf8 {[%clk 0:01:09.3]} 30. g5 {[%clk 0:00:10.1]} 30... Nf5 {[%clk
0:01:00]} 31. Nxf5 {[%clk 0:00:09.9]} 31... gxf5 {[%clk 0:01:00.1]} 32. Qh4+
{[%clk 0:00:06.3]} 32... Kg8 {[%clk 0:00:59.6]} 33. Re3 {[%clk 0:00:06.8]} 33...
Rd8 {[%clk 0:00:43.2]} 34. Re1 {[%clk 0:00:03]} 34... Rd4 {[%clk 0:00:39.4]} 35.
Qg3 {[%clk 0:00:03.1]} 35... Bxc4 {[%clk 0:00:31.2]} 36. g6 {[%clk 0:00:03]}
36... fxg6 {[%clk 0:00:28.1]} 37. Qxg6 {[%clk 0:00:03.9]} 37... Rg4 {[%clk
0:00:28.1]} 38. Qh5 {[%clk 0:00:03.8]} 38... Bd5 {[%clk 0:00:27.8]} 39. f3
{[%clk 0:00:03.6]} 39... Bxf3 {[%clk 0:00:26.2]} 40. Qxg4 {[%clk 0:00:03.5]}
40... fxg4 {[%clk 0:00:24.5]} 41. Bf1 {[%clk 0:00:04]} 41... Bd4+ {[%clk
0:00:22.6]} 42. Be3 {[%clk 0:00:03.8]} 42... Qc5 {[%clk 0:00:22.5]} 43. Kf2
{[%clk 0:00:03.9]} 43... Bxe3+ {[%clk 0:00:20.2]} 44. Rxe3 {[%clk 0:00:04.8]}
44... e5 {[%clk 0:00:19.5]} 45. h3 {[%clk 0:00:03.9]} 45... e4 {[%clk
0:00:19.3]} 46. hxg4 {[%clk 0:00:03.7]} 46... Bxg4 {[%clk 0:00:19.3]} 47. Bg2
{[%clk 0:00:02.1]} 47... Bf3 {[%clk 0:00:19.7]} 48. Bf1 {[%clk 0:00:01.8]} 48...
Qc2+ {[%clk 0:00:18.8]} 49. Kg3 {[%clk 0:00:02]} 49... Qd2 {[%clk 0:00:16.9]}
50. Rb3 {[%clk 0:00:01.7]} 50... Qe1+ {[%clk 0:00:15.4]} 0-1

[Event "*** Titled Tuesday Blitz"]
[Site "Chess.com"]
[Date "2021.03.30"]
[Round "8"]
[White "exoticprincess"]
[Black "OhanyanEminChess"]
[Result "1-0"]
[WhiteElo "2854"]
[BlackElo "2681"]
[TimeControl "180+1"]
[EndTime "11:29:29 PDT"]
[Termination "exoticprincess won on time"]

1. e4 {[%clk 0:03:00.9]} 1... e5 {[%clk 0:02:58.5]} 2. Nf3 {[%clk 0:03:00.5]}
2... Nc6 {[%clk 0:02:59.1]} 3. Bc4 {[%clk 0:03:00.1]} 3... Nf6 {[%clk
0:02:59.4]} 4. Ng5 {[%clk 0:02:59.3]} 4... Bc5 {[%clk 0:02:59.4]} 5. Bxf7+
{[%clk 0:02:53.3]} 5... Ke7 {[%clk 0:02:58.3]} 6. Bd5 {[%clk 0:02:37.3]} 6...
Rf8 {[%clk 0:02:56.1]} 7. O-O {[%clk 0:02:28.4]} 7... d6 {[%clk 0:02:52.6]} 8.
c3 {[%clk 0:02:19.3]} 8... Qe8 {[%clk 0:02:50.9]} 9. d4 {[%clk 0:02:11.5]} 9...
Bb6 {[%clk 0:02:48]} 10. Nd2 {[%clk 0:01:40.4]} 10... h6 {[%clk 0:02:08.6]} 11.
Ngf3 {[%clk 0:01:38.3]} 11... Bg4 {[%clk 0:02:07.9]} 12. Bxc6 {[%clk 0:01:23]}
12... bxc6 {[%clk 0:02:05.3]} 13. Re1 {[%clk 0:01:13.8]} 13... Qh5 {[%clk
0:01:59]} 14. h3 {[%clk 0:01:00.3]} 14... Bxh3 {[%clk 0:01:53.5]} 15. gxh3
{[%clk 0:00:59.9]} 15... Qxh3 {[%clk 0:01:51.5]} 16. Nh2 {[%clk 0:00:57.9]}
16... exd4 {[%clk 0:01:39.6]} 17. Qf3 {[%clk 0:00:57.4]} 17... Qh4 {[%clk
0:01:36.8]} 18. Nc4 {[%clk 0:00:45.3]} 18... dxc3 {[%clk 0:01:25.1]} 19. Nxb6
{[%clk 0:00:44.9]} 19... axb6 {[%clk 0:01:23]} 20. bxc3 {[%clk 0:00:42.6]} 20...
Ng4 {[%clk 0:01:05.4]} 21. Bg5+ {[%clk 0:00:21.3]} 21... hxg5 {[%clk 0:00:58]}
22. Qxg4 {[%clk 0:00:22.2]} 22... Qxf2+ {[%clk 0:00:58.2]} 23. Kh1 {[%clk
0:00:22.7]} 23... Rxa2 {[%clk 0:00:34.9]} 24. Rxa2 {[%clk 0:00:18]} 24... Qxe1+
{[%clk 0:00:30]} 25. Kg2 {[%clk 0:00:18.9]} 25... Qh4 {[%clk 0:00:03.7]} 26.
Qxh4 {[%clk 0:00:09.9]} 26... gxh4 {[%clk 0:00:04.6]} 27. Nf3 {[%clk 0:00:07.1]}
27... Rf4 {[%clk 0:00:04.7]} 28. Re2 {[%clk 0:00:04.4]} 28... Rg4+ {[%clk
0:00:03.2]} 29. Kf2 {[%clk 0:00:02.6]} 29... h3 {[%clk 0:00:02.6]} 30. Ke3
{[%clk 0:00:03.1]} 30... Rg2 {[%clk 0:00:01.2]} 31. Re1 {[%clk 0:00:02.4]} 31...
h2 {[%clk 0:00:01.2]} 32. Rh1 {[%clk 0:00:02.6]} 32... Rc2 {[%clk 0:00:01.6]}
33. Kd3 {[%clk 0:00:02.8]} 33... Rf2 {[%clk 0:00:02.2]} 34. Nxh2 {[%clk
0:00:03.3]} 34... Rf4 {[%clk 0:00:02.7]} 35. Nf1 {[%clk 0:00:02.8]} 35... c5
{[%clk 0:00:02.9]} 36. Ne3 {[%clk 0:00:03]} 36... Ke6 {[%clk 0:00:02.6]} 37. Rg1
{[%clk 0:00:03.9]} 37... Kf7 {[%clk 0:00:02.5]} 38. Nd5 {[%clk 0:00:04.3]} 38...
Rf3+ {[%clk 0:00:03.2]} 39. Ke2 {[%clk 0:00:04.2]} 39... Rh3 {[%clk 0:00:03]}
40. c4 {[%clk 0:00:04.4]} 40... c6 {[%clk 0:00:03.3]} 41. Nxb6 {[%clk
0:00:04.4]} 41... Rb3 {[%clk 0:00:04]} 42. Nc8 {[%clk 0:00:03.6]} 42... Ke6
{[%clk 0:00:03.8]} 43. Rxg7 {[%clk 0:00:02.9]} 43... Ke5 {[%clk 0:00:04.5]} 44.
Re7+ {[%clk 0:00:03.1]} 44... Kf6 {[%clk 0:00:01.4]} 45. Re8 {[%clk 0:00:03]}
1-0

[Event "*** Titled Tuesday Blitz"]
[Site "Chess.com"]
[Date "2021.03.30"]
[Round "8"]
[White "Isajevsky_Anton"]
[Black "KeithArkell"]
[Result "1-0"]
[WhiteElo "2544"]
[BlackElo "2598"]
[TimeControl "180+1"]
[EndTime "11:29:29 PDT"]
[Termination "Isajevsky_Anton won on time"]

1. c4 {[%clk 0:03:00.9]} 1... c5 {[%clk 0:02:59.5]} 2. Nc3 {[%clk 0:03:00.2]}
2... Nc6 {[%clk 0:02:59.1]} 3. Nf3 {[%clk 0:02:59.3]} 3... g6 {[%clk 0:02:58.7]}
4. e3 {[%clk 0:02:58.4]} 4... Nf6 {[%clk 0:02:58.5]} 5. d4 {[%clk 0:02:58.2]}
5... cxd4 {[%clk 0:02:58.9]} 6. exd4 {[%clk 0:02:59.1]} 6... d5 {[%clk
0:02:59.3]} 7. Bg5 {[%clk 0:02:59.6]} 7... Bg7 {[%clk 0:02:57.3]} 8. Bxf6 {[%clk
0:02:59.5]} 8... Bxf6 {[%clk 0:02:56.1]} 9. cxd5 {[%clk 0:02:59.5]} 9... Nb8
{[%clk 0:02:55.4]} 10. h3 {[%clk 0:02:59.5]} 10... O-O {[%clk 0:02:55.2]} 11.
Bc4 {[%clk 0:02:59]} 11... a6 {[%clk 0:02:54.3]} 12. O-O {[%clk 0:02:51.5]}
12... b5 {[%clk 0:02:53.3]} 13. Bb3 {[%clk 0:02:51.8]} 13... Nd7 {[%clk
0:02:52.9]} 14. Re1 {[%clk 0:02:43]} 14... Nb6 {[%clk 0:02:51.6]} 15. Ne5 {[%clk
0:02:43]} 15... Bb7 {[%clk 0:02:51.5]} 16. Ne4 {[%clk 0:01:55]} 16... Nxd5
{[%clk 0:02:42.7]} 17. Nc5 {[%clk 0:01:53.3]} 17... Ra7 {[%clk 0:02:29.2]} 18.
Nxb7 {[%clk 0:01:51.8]} 18... Rxb7 {[%clk 0:02:28.5]} 19. Qf3 {[%clk 0:01:52.4]}
19... e6 {[%clk 0:01:57.8]} 20. Rac1 {[%clk 0:01:22.7]} 20... Bg7 {[%clk
0:01:50.2]} 21. Rc5 {[%clk 0:01:15.6]} 21... Rc7 {[%clk 0:00:57.6]} 22. Bxd5
{[%clk 0:01:08.2]} 22... Rxc5 {[%clk 0:00:49.6]} 23. dxc5 {[%clk 0:01:01.4]}
23... Qxd5 {[%clk 0:00:49.2]} 24. Qxd5 {[%clk 0:01:00.5]} 24... exd5 {[%clk
0:00:50.1]} 25. Nd3 {[%clk 0:00:55]} 25... a5 {[%clk 0:00:34.9]} 26. Re7 {[%clk
0:00:53]} 26... Rc8 {[%clk 0:00:29.4]} 27. Rd7 {[%clk 0:00:49.4]} 27... d4
{[%clk 0:00:23.4]} 28. Rb7 {[%clk 0:00:48.7]} 28... b4 {[%clk 0:00:20.7]} 29.
Ra7 {[%clk 0:00:43.3]} 29... b3 {[%clk 0:00:11.2]} 30. axb3 {[%clk 0:00:42]}
30... Rb8 {[%clk 0:00:07]} 31. c6 {[%clk 0:00:42.2]} 31... Rc8 {[%clk 0:00:06]}
32. Ra6 {[%clk 0:00:23.2]} 32... Kf8 {[%clk 0:00:05.6]} 33. Kf1 {[%clk
0:00:21.9]} 33... Ke7 {[%clk 0:00:05.8]} 34. Ke2 {[%clk 0:00:21.1]} 34... Kd6
{[%clk 0:00:06]} 35. Rxa5 {[%clk 0:00:16.5]} 35... Rxc6 {[%clk 0:00:05]} 36. Kd2
{[%clk 0:00:15.7]} 36... Bh6+ {[%clk 0:00:04.9]} 37. f4 {[%clk 0:00:15.8]} 37...
Rb6 {[%clk 0:00:02.8]} 38. b4 {[%clk 0:00:13]} 38... Rb7 {[%clk 0:00:03.1]} 39.
g4 {[%clk 0:00:11.5]} 39... f6 {[%clk 0:00:02.2]} 40. Ra6+ {[%clk 0:00:11]}
40... Ke7 {[%clk 0:00:02.6]} 41. Kc2 {[%clk 0:00:09.7]} 41... Bg7 {[%clk
0:00:01.3]} 42. Kb3 {[%clk 0:00:10]} 42... Rc7 {[%clk 0:00:01.4]} 43. b5 {[%clk
0:00:09.9]} 43... Rb7 {[%clk 0:00:01.7]} 44. Kc4 {[%clk 0:00:10]} 44... Kf7
{[%clk 0:00:02.2]} 45. b6 {[%clk 0:00:08.9]} 45... Bf8 {[%clk 0:00:02.6]} 46.
Ra7 {[%clk 0:00:08.9]} 46... Re7 {[%clk 0:00:01.5]} 47. Rxe7+ {[%clk 0:00:08]}
47... Bxe7 {[%clk 0:00:01.8]} 48. Kd5 {[%clk 0:00:08.2]} 1-0